Cogmind - Beta 15 @@@ ROGUE MODE // 2025.07.29 @ 22:30:20 Player: SpaceExplorer337 Result: Destroyed by Y-45 Defender with Beam Rifle Performance ------------- Evolutions (2) 1000 Regions Visited (4) 800 Robots Destroyed (48) 240 Value Destroyed (1396) 1396 Prototype IDs (2) 40 Alien Tech Used (0) 0 Bonus (0) 0 TOTAL SCORE: 3476 Bonus ------- None Cogmind --------- Core Integrity 0/550 Matter 300/300 Energy 8/100 System Corruption 0% Temperature Cool (10) Movement Core (200) Ox3 Location -8/Storage Parts ------- > --- POWER (1) -------- (None) > --- PROPULSION (3) --- Improved Flight Unit Improved Flight Unit > --- UTILITY (5) ------ Cryofiber Web Improved Heat Sink Improved Signal Interpreter Hacking Suite > --- WEAPON (2) ------- Heavy Particle Cannon Shock Maul > --- INVENTORY (5) ---- Aluminum Leg Improved Flight Unit System Shield Flak Cannon Peak State ------------ > --- POWER ------------ Light Nuclear Core > --- PROPULSION ------- Improved Flight Unit Improved Flight Unit Improved Flight Unit > --- UTILITY ---------- Improved Heat Sink Improved Sensor Array Improved Signal Interpreter Hacking Suite Hacking Suite > --- WEAPON ----------- Subdweller Machine Gun Shock Maul > --- INVENTORY -------- Aluminum Leg Improved Flight Unit Improved Flight Unit Heavy Particle Cannon [Rating: 36] Favorites ----------- Power Ion Engine Engine Ion Engine Power Core Light Nuclear Core Propulsion Aluminum Leg Leg Aluminum Leg Flight Unit Improved Flight Unit Utility Small Storage Unit Device Sensor Array Storage Small Storage Unit Processor Signal Interpreter Hackware Hacking Suite Weapon Light Cannon Energy Gun Small Laser Energy Cannon Heavy Particle Cannon Ballistic Gun Subdweller Machine Gun Ballistic Cannon Light Cannon Impact Weapon Shock Maul Build | -11 -10 -10 -8 -8 ------- Run | Yrd Mat Sub Mat Sto Slots Evolved 4 | . . . 4 . Power . | . . . . . Propulsion 1 | . . . 1 . Utility 3 | . . . 3 . Weapon . | . . . . . Parts Attached 42 | 7 3 7 14 11 Power 6 | 1 . 2 2 1 Engine 3 | 1 . 2 . . Core 3 | . . . 2 1 Reactor . | . . . . . Propulsion 12 | 2 . 1 5 4 Treads . | . . . . . Leg 9 | 2 . 1 5 1 Wheel . | . . . . . Hover . | . . . . . Flight 3 | . . . . 3 Utility 12 | 2 1 . 4 5 Device 6 | 1 . . 3 2 Storage 2 | 1 1 . . . Processor 2 | . . . 1 1 Hackware 2 | . . . . 2 Protection . | . . . . . Artifact . | . . . . . Weapon 12 | 2 2 4 3 1 Energy Gun 1 | 1 . . . . Energy Cannon 1 | . . . 1 . Ballistic Gun 3 | 1 . . 2 . Ballistic Cannon 6 | . 2 4 . . Launcher . | . . . . . Special Weapon . | . . . . . Impact Weapon 1 | . . . . 1 Slashing Weapon . | . . . . . Piercing Weapon . | . . . . . Special Melee Weapon . | . . . . . Unidentified Prototypes 2 | . . . . 2 Parts Lost 21 | . . 6 10 5 Power 4 | . . 2 1 1 Propulsion 5 | . . 1 3 1 Utility 5 | . . . 3 2 Weapon 7 | . . 3 3 1 Highest Loss Streak 5 | . . 3 5 3 To Critical Strikes . | . . . . . Average Backups 5 | 2 7 6 5 4 Power . | 1 1 . . . Propulsion . | . . . . 2 Utility 1 | . 1 2 2 1 Weapon 2 | 1 4 3 2 . Tool/Special . | . . . . . Unused Backups 9 | . 2 . 2 5 Power 1 | . 1 . . . Propulsion 3 | . . . . 3 Utility 3 | . . . 2 1 Weapon 2 | . 1 . . 1 Tool/Special . | . . . . . Average Slot Usage (%) 90 | . 100 95 84 78 Engine 9 | . 14 13 5 . Core 1 | . . . 2 6 Leg 19 | . 28 23 16 2 Flight 3 | . . . . 22 Device 7 | . 1 . 16 18 Storage 20 | . 26 28 15 . Processor 3 | . . . 8 8 Energy Cannon 1 | . . . 1 6 Ballistic Gun 2 | . 1 . 6 6 Ballistic Cannon 19 | . 25 28 10 . Peak Build Rating 36 | 9 9 9 21 36 Average Rating 11 | 5 7 7 15 27 On Entrance 7 | . 9 7 8 14 Naked Turns . | . . . . . Heaviest Build 24 | 14 20 20 24 17 Greatest Support 40 | 20 20 20 40 35 Greatest Overweight (x) 7 | . . 1 7 5 Average Overweight (x) . | . . . 1 . Largest Inventory Capacity 8 | 8 8 8 8 5 Average Capacity 7 | 7 8 8 7 5 Most Carried 8 | 6 8 8 8 5 Average Carried 6 | 2 7 7 6 4 Final Capacity 8 | 8 8 8 5 5 Final Carried 8 | 2 8 8 5 4 Class Distribution -------------------- 78% | Mutant 10% | Scavenger-Skirmisher 9% | Skirmisher Dominant Class ---------------- Mutant | -10/Materials Mutant | -10/Subcaves Scavenger-Skirmisher | -8/Materials Mutant | -8/Storage Resources | -11 -10 -10 -8 -8 ----------- Run | Yrd Mat Sub Mat Sto Matter Collected 1450 | 186 200 387 548 129 Remotely . | . . . . . Salvage Created 1316 | 132 183 225 590 186 Parts 86 | 4 14 20 38 10 Haulers Intercepted 3 | . 1 . 1 1 Recyclers Shooed 1 | . . . 1 . Parts Field Recycled . | . . . . . Retrieved Matter . | . . . . . Parts Self-Destructed 5 | . . 5 . . Prevented . | . . . . . Kills | -11 -10 -10 -8 -8 ------- Run | Yrd Mat Sub Mat Sto Combat Hostiles Destroyed 34 | . 4 11 16 3 Melee 1 | . . . . 1 Guns 6 | . . . 6 . Cannons 25 | . 4 11 8 2 AOE 2 | . . . 2 . Classes Destroyed 12 | 2 3 2 5 . Worker 3 | . . . 3 . Builder 2 | . . . 2 . Tunneler 2 | 2 . . . . Hauler 3 | . 1 . 1 1 Recycler 2 | 1 . . 1 . Operator 1 | . . . 1 . Watcher 1 | . 1 . . . Swarmer 7 | . . 3 4 . Grunt 13 | . 4 . 8 1 Sentry 4 | . . . 2 2 Hunter 2 | . . . 2 . Subdweller 8 | . . 8 . . Best Kill Streak 11 | 2 3 3 11 1 Combat Bots Only 4 | . 2 3 4 1 Max Kills in Single Turn 6 | 1 2 1 6 1 Gunslinging . | . . . . . Exploded 2 | . . . 2 . Melee 1 | . . . . 1 Uniques/NPCs Destroyed . | . . . . . Combat | -11 -10 -10 -8 -8 -------- Run | Yrd Mat Sub Mat Sto Hostile Shots Fired 259 | . 12 81 111 55 Missed 71 | . 6 21 31 13 Hits 188 | . 6 60 80 42 Projectile 188 | . 6 60 80 42 Critical Strikes 5 | . . . 3 2 Damage Taken 3152 | . 67 1118 1305 662 Core 803 | . 22 221 293 267 Absorbed by Shields . | . . . . . Core Remaining (%) 51 | 100 . 2 . . Volleys Fired 149 | 21 19 46 50 13 Largest 2 | 2 2 2 2 2 Hottest 105 | 60 60 63 105 105 Shots Fired 291 | 42 38 92 100 19 Gun 100 | 42 . . 46 12 Cannon 191 | . 38 92 54 7 Launcher . | . . . . . Special . | . . . . . Kinetic 257 | 21 38 92 94 12 Thermal 34 | 21 . . 6 7 Explosive . | . . . . . Electromagnetic . | . . . . . Robot Hit Streak 17 | 3 7 7 17 14 Robot Miss Streak 5 | 4 2 3 5 1 Penetration Max . | . . . . . Secondary Targets 1 | . . . 1 . Max Gunslinging Chain 1 | . . . 1 . Shots Hit Robots 177 | 22 17 62 58 18 Core Hits 68 | 4 7 18 33 6 Critical Kills 1 | . . . . 1 Critical Parts Destroyed 2 | . . . 1 1 Critical Strikes 5 | . 1 . 2 2 Destroy 1 | . . . 1 . Blast 2 | . 1 . 1 . Smash 2 | . . . . 2 Melee Attacks 9 | . . . . 9 Impact 9 | . . . . 9 Slashing . | . . . . . Piercing . | . . . . . Sneak Attacks 1 | . . . . 1 Combat Hostiles . | . . . . . Follow-up Attacks . | . . . . . Damage Inflicted 4419 | 266 361 1031 2202 559 Guns 1115 | 266 . . 650 199 Cannons 2018 | . 328 1031 534 125 Explosions 1051 | . 33 . 1018 . Melee 235 | . . . . 235 Ramming . | . . . . . Kinetic 2835 | 168 328 1031 1109 199 Thermal 298 | 98 . . 75 125 Explosive 1018 | . . . 1018 . Electromagnetic 33 | . 33 . . . Impact 235 | . . . . 235 Slashing . | . . . . . Piercing . | . . . . . Highest Corruption . | . . . . . Average Corruption . | . . . . . Corruption Purged . | . . . . . Corruption Blocked . | . . . . . Overload Shots . | . . . . . Overflow Damage 290 | . 8 . 144 138 Projectiles 19 | . 8 . 11 . Explosions 133 | . . . 133 . Melee 138 | . . . . 138 Knockbacks 19 | . 7 8 4 . Impact . | . . . . . Kinetic 19 | . 7 8 4 . Secondary . | . . . . . Self-Inflicted Damage 132 | . . . 132 . Shots 2 | . . . 2 . Rammed . | . . . . . Targets Rammed . | . . . . . Kicked . | . . . . . Crushed . | . . . . . Highest Temperature 261 | . 24 . 261 45 Average Temperature 49 | . 12 . 58 33 Received Heat Transfer 966 | . 36 138 531 261 Siege Activations . | . . . . . Martial Activations . | . . . . . Shielding Activations . | . . . . . Robots Disrupted . | . . . . . Combat Hostiles . | . . . . . Robots Corrupted . | . . . . . Combat Hostiles . | . . . . . Parts Fried 1 | . . . . 1 Impact Corruptions 2 | . . . . 2 Robots Melted . | . . . . . Combat Hostiles . | . . . . . Parts Melted 2 | 1 . . . 1 Heat Transferred 521 | 225 . . 111 185 Parts Sabotaged . | . . . . . Parts Stolen . | . . . . . Parts Stripped . | . . . . . Power Chain Reactions . | . . . . . Alert | -11 -10 -10 -8 -8 ------- Run | Yrd Mat Sub Mat Sto Maximum Alert Level 1 | . . . 1 . Low Security (%) 88 | 100 100 . 71 100 Level 1 11 | . . . 28 . Level 2 . | . . . . . Level 3 . | . . . . . Level 4 . | . . . . . Level 5 . | . . . . . High Security . | . . . . . Max Security . | . . . . . Peak Influence 296 | 10 48 . 296 130 Initial 115 | . . . . 115 Average 76 | . 17 . 128 87 Influence Increases 949 | 15 144 70 581 139 Destroy 0b10 Robot/C 520 | . 80 60 320 60 Destroy 0b10 Robot/NC 70 | 15 10 . 40 5 Destroy Leader 118 | . 4 10 82 22 Successful Hack 27 | . 4 . 4 19 Disable Machine 120 | . 45 . 60 15 Destroy Structure 49 | . 1 . 45 3 Partial Spotted 15 | . . . . 15 Lose Combat Pursuer 30 | . . . 30 . Influence Decreases 905 | 15 115 99 308 368 Entered New Map 173 | . . 15 . 158 Time Decay 582 | 15 115 84 208 160 Lost Part 150 | . . . 100 50 Squads Dispatched 5 | . . . 4 1 Investigation 1 | . . . . 1 Extermination . | . . . . . Reinforcement 3 | . . . 3 . Assault . | . . . . . Garrison 1 | . . . 1 . Intercept . | . . . . . Searches Triggered . | . . . . . Construction Impeded 1 | . . . 1 . Haulers Reinforced . | . . . . . Active Scanning Responses . | . . . . . Cargo Convoy Interrupts . | . . . . . Stealth | -11 -10 -10 -8 -8 --------- Run | Yrd Mat Sub Mat Sto Distress Signals 8 | . 2 . 4 2 Communications Jammed . | . . . . . Distress Signals . | . . . . . Times Spotted 55 | . 6 11 30 8 Peak Tracking Total 8 | . 3 3 8 4 Tactical Retreats 2 | . . . 2 . Traps | -11 -10 -10 -8 -8 ------- Run | Yrd Mat Sub Mat Sto Traps Triggered 1 | . . . . 1 Indirectly . | . . . . . Trap Hack Attempts . | . . . . . Triggered . | . . . . . Disarmed 6 | . 6 . . . Reprogrammed . | . . . . . Reused . | . . . . . Traps Extracted . | . . . . . Installed . | . . . . . Triggered . | . . . . . Machines | -11 -10 -10 -8 -8 ---------- Run | Yrd Mat Sub Mat Sto Machines Disabled 8 | . 3 . 4 1 Max in Single Turn 2 | . 2 . 1 1 Machines Repaired . | . . . . . Machines Dismantled . | . . . . . Machines Sabotaged . | . . . . . Overloaded Fab Kills . | . . . . . Hacking | -11 -10 -10 -8 -8 --------- Run | Yrd Mat Sub Mat Sto Machines Accessed 10 | . 2 . 3 5 Terminals 10 | . 2 . 3 5 Fabricators . | . . . . . Repair Stations . | . . . . . Recycling Units . | . . . . . Scanalyzers . | . . . . . Garrison Access . | . . . . . Total Hacks 24 | . 6 . 9 9 Successful 9 | . 3 . 2 4 Failed 15 | . 3 . 7 5 Catastrophic 3 | . . . 2 1 Database Lockouts . | . . . . . Manual . | . . . . . Terminals 24 | . 6 . 9 9 Fabricators . | . . . . . Repair Stations . | . . . . . Recycling Units . | . . . . . Scanalyzers . | . . . . . Garrison Access . | . . . . . Terminal Hacks 9 | . 3 . 2 4 Record 1 | . . . 1 . Open Door 2 | . . . . 2 Locate Traps 2 | . 1 . 1 . Disarm Traps 2 | . 2 . . . Zone Layout 2 | . . . . 2 Fabricator Hacks . | . . . . . Repair Station Hacks . | . . . . . Recycling Unit Hacks . | . . . . . Scanalyzer . | . . . . . Garrison Access Hacks . | . . . . . Unauthorized Hacks . | . . . . . Terminals . | . . . . . Fabricators . | . . . . . Repair Stations . | . . . . . Recycling Units . | . . . . . Scanalyzers . | . . . . . Garrison Access . | . . . . . Data Cores Recovered 1 | . . . 1 . Used . | . . . . . Hacking Detections 9 | . 2 . 3 4 Full Trace Events 2 | . 1 . . 1 Feedback Events . | . . . . . Feedback Blocked . | . . . . . Robot Schematics Acquired . | . . . . . Robots Built . | . . . . . Authchips . | . . . . . Time . | . . . . . Total Robot Build Rating . | . . . . . Part Schematics Acquired . | . . . . . Parts Built . | . . . . . Authchips . | . . . . . Time . | . . . . . Total Part Build Rating . | . . . . . Parts Repaired . | . . . . . Time . | . . . . . Parts Recycled . | . . . . . Recycled Matter . | . . . . . Retrieved Matter . | . . . . . Retrieved Components . | . . . . . Parts Scanalyzed . | . . . . . Part Schematics Acquired . | . . . . . Parts Damaged . | . . . . . Bothacking | -11 -10 -10 -8 -8 ------------ Run | Yrd Mat Sub Mat Sto Used RIF Installer . | . . . . . Robots Hacked . | . . . . . Non-combat . | . . . . . Combat . | . . . . . Robot Hacks Applied . | . . . . . Relay Couplers Released . | . . . . . Fabnet Peak Effective % . | . . . . . Robots Rewired . | . . . . . Allies Hacked . | . . . . . Hacks Repelled . | . . . . . Allies | -11 -10 -10 -8 -8 -------- Run | Yrd Mat Sub Mat Sto Total Allies . | . . . . . Largest Group . | . . . . . Highest-Rated Group . | . . . . . Highest-Rated Ally . | . . . . . Total Orders . | . . . . . Ally Attacks . | . . . . . Total Damage . | . . . . . Kills . | . . . . . Allies Corrupted . | . . . . . Allies Melted . | . . . . . Intel | -11 -10 -10 -8 -8 ------- Run | Yrd Mat Sub Mat Sto Active Infowar (turns) 837 | 15 22 . 490 310 Optics 420 | . . . 420 . Sensors 800 | . . . 490 310 Terrain 37 | 15 22 . . . Robot Analysis Total . | . . . . . Derelict Logs Recovered . | . . . . . Drone Launches . | . . . . . Drone Recoveries . | . . . . . Exploration | -11 -10 -10 -8 -8 ------------- Run | Yrd Mat Sub Mat Sto Turns Passed 2332 | 179 282 1033 505 333 Spaces Moved 1264 | 86 165 641 175 197 Core 26 | 4 . . 10 12 Treads . | . . . . . Legs 1074 | 82 165 641 165 21 Wheels . | . . . . . Hover . | . . . . . Flight 164 | . . . . 164 Fastest Speed 34 | 50 120 120 120 34 Average Speed 131 | 116 120 136 178 89 Slowest Speed 400 | 120 120 190 400 300 Overloaded Moves . | . . . . . Propulsion Burnouts . | . . . . . Robots Hopped . | . . . . . Potential Cave-ins . | . . . . . Cave-ins Triggered . | . . . . . Exploration Rate (%) 22 | 6 23 29 24 32 Regions Visited 4 Branch Regions 2 Pre-discovered Areas . | . . . . . Known Exits Taken 1 | . . . 1 . Unknown Exits Taken 3 | 1 1 1 . . Scrap Searched . | . . . . . Spaces Dug . | . . . . . Terrain Destroyed 50 | . . . 49 1 Melee . | . . . . . Projectile 7 | . . . 6 1 AOE 43 | . . . 43 . Terrain Rammed . | . . . . . Walls Destroyed . | . . . . . Machines Disabled . | . . . . . Actions | -11 -10 -10 -8 -8 --------- Run | Yrd Mat Sub Mat Sto Total 1632 | 122 211 710 269 320 Wait 100 | . 11 4 13 72 Move 1260 | 85 164 640 174 197 Hop . | . . . . . Pick Up 51 | 9 10 8 13 11 Fast Attach 2 | . . 1 . 1 Attach 36 | 7 . 6 12 11 Detach . | . . . . . Swap 5 | . 3 . 2 . Drop 20 | . 4 5 5 6 Fire 149 | 21 19 46 50 13 Melee 9 | . . . . 9 Ram . | . . . . . Kick . | . . . . . Crush . | . . . . . Escape Stasis . | . . . . . Rewire . | . . . . . Trap . | . . . . . Miscellaneous . | . . . . . Route ------- -11/Scrapyard -10/Materials -10/Subcaves -8/Materials -8/Storage History --------- Turn | Location | Event 28 | -11/Scrapyard | Discovered new exit (range 15) 180 | -11/Scrapyard | Entered Materials 292 | -10/Materials | Discovered new exit (range 6) 316 | -10/Materials | Build established: Mutant 462 | -10/Materials | Entered Subcaves 463 | -10/Subcaves | Approached by a straggling Scientist 942 | -10/Subcaves | Shifting Twisted Machinery released Sub. Shrapnel Launcher 942 | -10/Subcaves | Discovered new exit (range 10) 943 | -10/Subcaves | Shifting Twisted Machinery released Battle Rifle 1148 | -10/Subcaves | Core integrity fell below 50% 1219 | -10/Subcaves | Lost 3 parts (1p1n1w) 1342 | -10/Subcaves | Core integrity fell below 20% 1495 | -10/Subcaves | Entered Materials 1495 | -8/Materials | Evolved 4 slots: Propulsion x1, Utility x3 1846 | -8/Materials | Garrison activated, responded to threat 1929 | -8/Materials | Core integrity fell below 50% 1955 | -8/Materials | Lost 5 parts (1p1n1u2w) 1975 | -8/Materials | Discovered new exit (range 16) 1996 | -8/Materials | Identified exit to Storage 2000 | -8/Materials | Entered Storage 2029 | -8/Storage | Lost 3 parts (1n2u) 2289 | -8/Storage | Lost 3 parts (1p1u1w) 2319 | -8/Storage | Core integrity fell below 20% 2333 | -8/Storage | Destroyed by Y-45 Defender with Beam Rifle Last Messages --------------- crushing effect. 02298_ Transport Network Coupler fried. 02298_ A-02 Transporter destroyed. 02301_ Acquired Cryofiber Web. 02303_ Dropped Imp. Flight Unit. 02303_ Acquired System Shield. 02305_ Acquired 10 matter. 02312_ W-25 Informer sends out distress signal. 02319_ R-06 Scavenger collects Corrupted Med. Storage Unit. 02321_ Component Storage disabled. 02322_ R-06 Scavenger collects Cryofiber Web. 02325_ Imp. Flight Unit destroyed. 02326_ Acquired 10 matter. 02327_ R-06 Scavenger collects Lgt. Treads. 02328_ Imp. Sensor Array destroyed. 02332_ Connecting with Terminal... 02332_ ALERT: Suspicious activity at Terminal S005. Dispatching Investigation squad. Map ----- +----------------------------------------------------+ | ???????# """ ## ##???????????????#[ | | ???????# ## ##???????????????#= | | ???????# """ #######???????????????# | | ???????# """ #######???????????????# | | ???????# """ #??#%########?????????# | | ???????# ####= !] ########### | | ???????###########"" # # | | ?????????????????#"" # ! + | | ?????????????????#"T # ! ! # | | ?????????????????#"" # ] # | | ?????????????????#"" """ " ########### | | ?????????????????### """ T ########## | | ???????????????????# """ " + | | ???????????????????# ########## | | ???????????????????##+##+######??????##+ | | ???????????????????# #??????## | | ???????????????????# #??????## | | ???????????????????# #??????## | | ???????????????????# #####??### | | ?????????########### #??### | | ????????## ^ # #### #????? | | ????????# """ # ####+##+## #????? | | ????????## """ # # # #????? | | ?????????#^"""Y %+ # """" # #????? | | ?????????# """ g # # " "" # #????? | | ?????????# "" @ # # " """ # #????? | | ?????????# "T" # / """ " # #????? | | ?????????# % Y # # "????????????? | | ?????????#####/##### #? "???????????? | | ????????????? ??# #???????????????? | | ???????????? ?# #???????????????? | | ??????????? # #???????????????? | | ??????????? h """ # #???????????????? | | ?????????? " " """ + #???????????????? | | ???????????"G" """ # #???????????????? | | ??????????? " # #???????????????? | | ???????????? ???? #???????????????? | | ?????????????" "???? #???????????????? | | ?????????????"R"???? #???????????????? | | ??????????????"????? ????????????????? | | ???????????????????????????????????????? | | ???????????????????????????????????????? | | ???????????????????????????????????????? | | ???????????????????????????????????????? | | ???????????????????????????????????????? | | ???????????????????????????????????????? | | ???????????????????????????????????????? | | ???????????????????????????????????????? | | ???????????????????????????????????????? | | ???????????????????????????????????????? | +----------------------------------------------------+ Best States ------------- Heat Dissipation 59 Energy Generation 15 Energy Capacity 250 Matter Stores 300 Matter Capacity 500 Sight Range 21 Robot Scan Range 15 Terrain Scan Range 16 Terrain Scan Density 10 Base Temperature (-) 100 Evasion (%) 63 Offensive Hacking 20 Item Schematics ----------------- None Robot Schematics ------------------ None Fabricated ------------ Nothing Repaired ---------- Nothing Alien Tech Used ----------------- None Achievements -------------- None Challenges ------------ None Game ------ Seed PlatingBladeExtrapolator Manual? 0 Play Time 00:31:42 Cumulative 22.3 hours Start 2025.07.29 @ 20:00:06 End 2025.07.29 @ 22:30:20 Sessions 1 Manual Loads 0 Difficulty Rogue Special Mode None Game No. 33 Rogue 33 Adventurer 0 Explorer 0 Win Type - Total 0 Types 0/0/0/0/0/0/0/0/0/0 Lore% 18 Gallery% 20 Achievement% 17 Wizard Run 0 Options --------- Layout 1 ASCII 0 Keyboard 0 Movement Mouse Keybinds 0 Fullscreen 1 Font 24/Smallcaps Map View 50x40 Zoom Use 0% Tactical HUD 1 Map Filters NONE Filters NONE Steam 1 RUN: 71d23eb8-f6f4-46fc-9a5e-7ddddb22884f